[Event "1000 GM Labor Day Super Swiss 2024"]
[Site "San Jose"]
[Date "2024.08.31"]
[Round "2.19"]
[White "Atwell, Rose"]
[Black "Gongora Montes, Benjamin"]
[Result "0-1"]
[Annotator "TA"]
[ECO "E10"]
[WhiteElo "2208"]
[BlackElo "2111"]
[PlyCount "72"]
[EventDate "2024.08.30"]
[EventCountry "USA"]
[SourceTitle "playchess.com"]
[Source "ChessBase"]
[SourceQuality "1"]
[TimeControl "5400+30"]

{[%evp 9,72,32,35,33,33,32,33,33,37,35,42,21,54,36,31,25,43,25,35,12,82,45,39,17,0,21,38,18,45,34,60,51,35,-32,0,0,0,0,0,-51,0,-125,-143,-142,-139,-153,0,0,0,-193,-190,-246,-255,-564,-498,-1135,-1101,-1513,-786,-793,-805,-1380,-1384,-29992,-4768]} 1. d4 Nf6 2. c4 Nc6 3. Nf3 e6 4. a3 d5 5. Nc3 Be7 6. e3 O-O 7. Bd3 b6 8. cxd5 {White is slightly better.} exd5 9. Qc2 Bb7 10. b4 {[%cal Bb2b4,Bb4b5][%mdl 32]} a6 11. Bb2 Bd6 12. O-O Nb8 13. b5 Re8 14. a4 {[%cal Of3e5,Ba3a4,Ba4a5][%mdl 32]} Ne4 (14... c6 $11 {remains equal.}) 15. Ne2 Nd7 16. g3 Qf6 17. Kg2 g5 {[%cal Bg7g5,Bg5g4][%mdl 32]} 18. a5 g4 19. Nh4 axb5 20. Bxb5 c6 $1 21. f3 (21. Bxc6 $2 Rac8 22. Qd3 Bxc6 $19) ({White should try} 21. a6 $14 cxb5 22. axb7 Rxa1 23. Bxa1) 21... Nxg3 22. hxg3 cxb5 23. fxg4 Qe6 {Some like it hot} 24. Nf5 (24. Nf4 $1 $11 Bxf4 (24... Qxg4 25. Nf5 $11) 25. Rxf4) 24... bxa5 (24... Rxa5 25. Nxd6 Qxd6 26. Rxf7) ({Black should play} 24... Bf8 $15 25. a6 (25. Nf4 Rec8 $17) 25... Rxa6 (25... Bxa6 26. Nf4 $15) 26. Rxa6 Rc8 (26... Bxa6 27. Ra1 $11)) 25. Nxd6 (25. Nf4 $11 {keeps the balance.} Bxf4 26. Rxf4) 25... Qxd6 $17 26. Rxf7 {[%csl Gf7][%cal Rc2h7] [#]} Re4 $1 $36 {[%mdl 2048] Keeping White busy.} (26... Kxf7 $2 27. Qxh7+ Ke6 28. Nf4+ $18) 27. Raf1 {Black must now prevent Nc3.} Rf8 $2 (27... b4 $1 $17 {[%cal Ob7a6] aiming for ...Ba6!} 28. R7f5 Rxg4 (28... Rxe3 29. Rg5+ Kh8 30. Rf7 $16)) 28. Rxf8+ $11 {[%emt 0:14:00]} Nxf8 {[%emt 0:14:00]} 29. Nc3 $2 {[%emt 0:00:30]} (29. Nf4 $11) 29... Rxe3 $19 {[%emt 0:00:30]} ({Weaker is} 29... Rxg4 30. Qf2 Nd7 31. Nxb5 $15) 30. Qf2 {[%emt 0:00:30]} (30. Ne2 {might work better.}) 30... Qe7 {[%emt 0:00:30]} 31. Kh3 $2 {[%emt 0:00:30]} (31. Qf5 Ne6 32. Rf3 Nxd4 33. Rxe3 Qxe3 34. Qf2 Qxf2+ 35. Kxf2) 31... b4 {[%emt 0:00:30][%cal Of8e6] Threatens to win with ...Ne6!} 32. Na4 {[%emt 0:00:30]} (32. Nd1 $142 Re6 33. Qf3) 32... Ba6 {[%emt 0:00:30]} 33. Rc1 {[%emt 0:00:30]} Bb5 {[%emt 0:00:30]} 34. Nb6 {[%emt 0:00:30]} Re6 {[%emt 0:00:30]} 35. Qf4 {[%emt 0:00:30] Dodges Rh6+} Rxb6 {[%emt 0:00:30]} 36. Rc7 {[%emt 0:00:30] [#]} Bf1+ $1 {[%emt 0:00:30] Weighted Error Value: White=1.00/Black=0.42.  Loses game:     	White=1     	---        Mistake:       	White=6     	Black=3      Inaccurate:     	White=2     	Black=4      OK:         	White=4     	Black=6      Best:        	White=3     	Black=4      Strong:       	---       	Black=2} 0-1

[Event "1000 GM Labor Day Super Swiss 2024"]
[Site "San Jose"]
[Date "2024.08.31"]
[Round "2.20"]
[White "Guo, Ethan"]
[Black "Gonzalez Zharikov, Andrey"]
[Result "1-0"]
[Annotator "TA"]
[ECO "B11"]
[WhiteElo "2211"]
[BlackElo "2070"]
[PlyCount "121"]
[EventDate "2024.08.30"]
[EventCountry "USA"]
[SourceTitle "playchess.com"]
[Source "ChessBase"]
[SourceQuality "1"]
[TimeControl "5400+30"]

{[%evp 33,121,0,18,0,76,0,52,55,98,100,114,77,91,84,85,64,60,30,83,0,66,-47,-57,-58,-57,-61,-13,-16,-25,-18,-18,-49,-53,-162,-93,-98,-26,-21,0,0,36,8,25,-22,35,23,23,8,7,0,0,0,22,0,0,0,0,0,0,0,0,0,0,0,0,0,0,0,34,32,83,103,104,111,181,165,211,0,15,14,61,62,429,437,2713,2558,29972,29972,29991,29984]} 1. e4 {[%emt 0:06:16]} c6 {[%emt 0:00:17]} 2. Nc3 {[%emt 0:00:07]} d5 {[%emt 0:00:05]} 3. Nf3 {[%emt 0:00:15]} dxe4 {[%emt 0:00:05]} 4. Nxe4 {[%emt 0:00:09]} Nf6 {[%emt 0:00:06]} 5. Qe2 {[%emt 0:00:11]} Nxe4 {[%emt 0:00:10]} 6. Qxe4 {[%emt 0:00:06]} Nd7 {[%emt 0:01:07] B11: Caro-Kann: Two Knights Variation.} 7. Bc4 {[%emt 0:00:29]} Nf6 {[%emt 0:00:09]} 8. Ne5 {[%emt 0:00:05]} e6 {[%emt 0:00:04]} 9. Qe2 {[%emt 0:00:13]} Be7 {[%emt 0:04:51]} 10. O-O {[%emt 0:01:13]} O-O {[%emt 0:01:31]} 11. a4 {[%emt 0:00:12]} Qc7 {[%emt 0:10:05]} 12. d4 {[%emt 0:02:29]} b6 {[%emt 0:08:32]} 13. Bf4 {[%emt 0:03:51]} Bd6 $146 {[%emt 0:02:31]} ({Predecessor:} 13... Qb7 14. a5 bxa5 15. b3 Nd5 16. Bd2 c5 17. dxc5 Bxc5 18. Rxa5 Bb4 19. Rb5 Qe7 {1-0 Plotkin,M (2344)-Meneses,R (1783) Toronto Candidates Blitz op 2024 (1)}) 14. a5 {[%emt 0:02:18]} bxa5 {[%emt 0:05:12]} 15. Ra4 {[%emt 0:04:35]} Rb8 {[%emt 0:09:13]} 16. Rfa1 {[%emt 0:04:11]} Nd5 {[%emt 0:07:17]} 17. Bd2 {[%emt 0:07:11]} c5 {[%emt 0:03:38]} 18. Bxa5 {[%emt 0:02:57]} Qb7 {[%emt 0:02:14]} (18... Nb6 $11) 19. Bb3 {[%emt 0:07:32]} (19. dxc5 $2 Nf4 20. Qf3 Bxe5 $19) (19. Bxd5 $1 $16 Qxd5 20. c4 Qxd4 21. Bc3) 19... cxd4 {[%emt 0:08:39]} (19... Nf4 $11 20. Qg4 cxd4 21. Qxf4 Qb5) 20. Rxd4 $14 {[%emt 0:56:10]} f6 {[%emt 0:05:30]} 21. Nd3 {[%emt 0:00:00]} Qf7 {[%emt 0:09:06]} 22. Re1 {[%emt 0:00:00]} Rxb3 {[%emt 0:03:03]} 23. cxb3 {[%emt 0:00:00]} e5 {[%emt 0:00:14]} 24. Rc4 {[%emt 0:00:00]} Ba6 {[%emt 0:00:59]} 25. Qf3 {[%emt 0:00:00]} Bb7 {[%emt 0:02:41]} (25... Bxc4 $11 {keeps the balance.} 26. bxc4 Bc7) 26. Qe2 {[%emt 0:00:00]} (26. Qg3 $1 $16) 26... Nb6 {[%emt 0:06:08] [#]} (26... Ba6 $11) 27. Nb4 {[%emt 0:00:00]} (27. Bxb6 $1 $14 axb6 (27... Qd5 28. Nf4) 28. Qe3) 27... Nxc4 $15 {[%emt 0:02:40]} 28. bxc4 {[%emt 0:00:00]} Rc8 {[%emt 0:00:57]} 29. b3 {[%emt 0:00:00]} Bc5 {[%emt 0:02:51]} (29... Qg6 $15 30. Nd5 Bxd5 31. cxd5 Rc2) 30. Rd1 $11 {[%emt 0:00:00]} Bd4 {[%emt 0:00:54]} 31. Nc2 {[%emt 0:00:00]} Qg6 {[%emt 0:00:23]} 32. g3 {[%emt 0:00:00]} Qf5 {[%emt 0:02:22]} 33. Rd2 {[%emt 0:00:00] [#]} (33. Nxd4 $15 exd4 34. Bb4) 33... Bf3 {[%emt 0:00:46]} (33... h5 $1 $19 34. Bb4 Bf3) 34. Qe1 $17 {[%emt 0:00:00]} Bc5 {[%emt 0:00:54]} ({Better is} 34... Bc6 $17 {Threatens to win with ...Qf3.} 35. Nxd4 exd4 36. Rxd4 Re8) 35. b4 $1 $11 {[%emt 0:00:00]} Bf8 {[%emt 0:00:18]} 36. Ne3 {[%emt 0:00:00]} Qe4 {[%emt 0:00:24]} 37. Qc1 {[%emt 0:00:00]} g6 {[%emt 0:00:40]} 38. Qc2 {[%emt 0:00:00]} (38. c5 {feels stronger.}) 38... Qb7 {[%emt 0:00:01]} (38... Qxc2 $11 39. Rxc2 Kf7) 39. c5 {[%emt 0:00:00]} Bc6 {[%emt 0:01:39]} 40. Qc4+ {[%emt 0:00:00]} Kg7 {[%emt 0:00:08]} 41. Qe6 {[%emt 0:00:00]} Re8 {[%emt 0:00:07]} 42. Qc4 {[%emt 0:00:00]} Bb5 {[%emt 0:00:57]} 43. Qg4 {[%emt 0:00:00]} h5 {[%emt 0:00:32]} 44. Qd1 {[%emt 0:00:00]} Qe4 {[%emt 0:00:47]} 45. Qc2 {[%emt 0:00:00]} Qf3 {[%emt 0:00:15]} 46. Qd1 {[%emt 0:00:00]} Qe4 {[%emt 0:00:05]} 47. Qc2 {[%emt 0:00:00]} Qf3 {[%emt 0:00:08]} 48. Nd5 {[%emt 0:00:24]} Bc6 {[%emt 0:01:23]} 49. Qd3 {[%emt 0:01:18]} e4 {[%emt 0:00:38]} 50. Qe3 {[%emt 0:13:18]} Re5 {[%emt 0:00:41]} 51. Nc3 {[%emt 0:00:00]} a6 {[%emt 0:00:30]} (51... Kf7 $14) 52. Bc7 $16 {[%emt 0:00:00]} Re8 {[%emt 0:00:39] [#]} 53. Bd6 $1 {[%emt 0:00:00]} h4 {[%emt 0:00:14]} (53... g5 $16 54. Bxf8+ Rxf8) 54. Bxf8+ {[%emt 0:00:00]} Rxf8 {[%emt 0:00:01]} (54... Kxf8 $142 55. Rd6 (55. gxh4 Kf7 $16) 55... h3 56. Qxf3 (56. Rxc6 $2 Qg2#) 56... exf3) 55. Ne2 $2 {[%emt 0:00:00]} ({White should play} 55. gxh4 $18 {Strongly threatening Rd6.} Qg4+ 56. Qg3) 55... hxg3 {[%emt 0:00:07]} 56. hxg3 {[%emt 0:00:00]} (56. Qxf3 {simplifies} exf3 57. Nd4 gxh2+ 58. Kxh2 Bd5 59. Nb5) 56... Qh5 {[%emt 0:01:38]} (56... Rb8 $1 $11 {might be stronger.}) 57. Nf4 $1 $14 {[%emt 0:00:00]} Qg4 $2 {[%emt 0:00:46][%mdl 8192]} (57... Qe5 $1 $14 58. Qd4 (58. Rd6 Qa1+ 59. Kg2 Rh8 60. Ne6+ Kf7 61. Ng5+ fxg5 62. Qb3+ Kg7) 58... Qe8) 58. Rd6 $18 {[%emt 0:00:00]} Rh8 {[%emt 0:00:58]} (58... Bd7 $142 59. c6 (59. Rxa6 Qd1+ 60. Kg2 Rh8 61. Ne6+ Bxe6 62. Ra7+ Bf7) (59. Qxe4 Bf5 $18) 59... Bf5) 59. Qd4 $18 {[%emt 0:00:00]} (59. Rxc6 $2 {leads to mate.} Qd1+) 59... Be8 {[%emt 0:00:32]} 60. Qxf6+ {[%emt 0:00:00]} Kg8 {[%emt 0:00:01]} 61. Rd8 {[%emt 0:00:00]} (61. Rxa6 $2 {is a self mate.} Qd1+ 62. Kg2 Qh1#) 1-0

[Event "1000 GM Labor Day Super Swiss 2024"]
[Site "San Jose"]
[Date "2024.08.31"]
[Round "2.21"]
[White "Garduno Huerta, Joshua Emiliano"]
[Black "Piasetski, Leon"]
[Result "1/2-1/2"]
[Annotator "TA"]
[ECO "E11"]
[WhiteElo "2056"]
[BlackElo "2167"]
[PlyCount "72"]
[EventDate "2024.08.30"]
[EventCountry "USA"]
[SourceTitle "playchess.com"]
[Source "ChessBase"]
[SourceQuality "1"]
[TimeControl "5400+30"]

{[%evp 22,72,49,50,50,49,46,47,69,69,66,48,65,0,0,-12,-11,-22,56,-53,12,21,11,13,65,60,81,37,57,10,8,0,0,0,0,0,6,0,0,0,50,0,0,0,0,0,0,0,0,0,0,0,0]} 1. d4 {[%emt 0:00:02]} Nf6 {[%emt 0:10:36]} 2. c4 {[%emt 0:00:17]} e6 {[%emt 0:00:23]} 3. Nf3 {[%emt 0:00:05]} Bb4+ {[%emt 0:01:50]} 4. Bd2 {[%emt 0:00:10]} Qe7 {[%emt 0:01:59]} 5. g3 {[%emt 0:00:22]} Bxd2+ {[%emt 0:07:42]} 6. Nbxd2 {[%emt 0:03:09]} d6 {[%emt 0:00:27]} 7. Bg2 {[%emt 0:06:10]} e5 {[%emt 0:01:16]} 8. e4 {[%emt 0:06:24]} Bg4 {[%emt 0:06:44]} 9. Qc2 {[%emt 0:30:34]} O-O {[%emt 0:13:22]} 10. O-O {[%emt 0:03:54]} Bxf3 {[%emt 0:19:45]} 11. Nxf3 {[%emt 0:00:59]} c5 {[%emt 0:01:53]} 12. d5 {[%emt 0:03:01]} Nbd7 {[%emt 0:00:21]} 13. Nd2 {[%emt 0:11:44]} Nh5 {[%emt 0:03:14]} 14. Bf3 {[%emt 0:01:15]} Qg5 {[%emt 0:01:10] White is slightly better.} 15. Qd1 {[%emt 0:06:25][%cal Oh2h4] [#] aiming for h4!} Nhf6 {[%emt 0:04:53]} 16. Bg2 {[%emt 0:03:17]} h5 {[%emt 0:01:33][%cal Bh7h5,Bh5h4][%mdl 32]} 17. f4 {[%emt 0:04:19]} (17. Nf3 $14 Qg4 18. Re1) 17... Qh6 $11 {[%emt 0:01:47]} 18. Qf3 {[%emt 0:02:28]} h4 {[%emt 0:01:32]} 19. Rf2 {[%emt 0:01:11]} Qh5 {[%emt 0:01:57]} (19... a6 $11) 20. Re1 {[%emt 0:03:02]} ({Better is} 20. Qxh5 $14 Nxh5 21. Bh3 (21. gxh4 Nxf4 22. Rf3 g6 $17)) 20... Qxf3 {[%emt 0:06:59]} (20... hxg3 $1 $15 21. Qxg3 exf4 22. Qxf4 (22. Rxf4 Qh6 $17) 22... Rad8) 21. Rxf3 {[%emt 0:02:10]} hxg3 {[%emt 0:00:20]} 22. hxg3 {[%emt 0:00:09]} Ng4 {[%emt 0:00:59]} (22... Rfe8 $11) 23. Bh3 $14 {[%emt 0:01:10]} Ndf6 {[%emt 0:00:08]} 24. Nf1 {[%emt 0:03:36]} Rfe8 {[%emt 0:00:41]} 25. Bxg4 {[%emt 0:06:03]} (25. Kg2 $14 {might be stronger.}) 25... Nxg4 $11 {[%emt 0:00:08]} 26. Ne3 {[%emt 0:00:19]} Nxe3 {[%emt 0:00:42]} 27. Rfxe3 {[%emt 0:00:10][%mdl 4096] Endgame. KRR-KRR} g6 {[%emt 0:00:37]} 28. Kf2 {[%emt 0:00:20]} Kg7 {[%emt 0:00:09]} 29. Kf3 {[%emt 0:00:54]} Re7 {[%emt 0:00:21]} 30. Rh1 {[%emt 0:00:21]} Rae8 {[%emt 0:00:29]} ({Black should try} 30... exf4 $11 31. gxf4 Rae8) 31. Rh2 {[%emt 0:02:00]} (31. f5 $14) 31... exf4 {[%emt 0:05:29] The position is equal.} 32. gxf4 {[%emt 0:00:00]} f5 {[%emt 0:00:08]} 33. Rhe2 {[%emt 0:00:15] Black must now prevent e5.} Kf6 {[%emt 0:01:58]} 34. exf5 {[%emt 0:00:30] [#] And now Re6+ would win.} Rxe3+ {[%emt 0:00:09]} 35. Rxe3 {[%emt 0:00:30]} Rxe3+ {[%emt 0:00:30]} 36. Kxe3 {[%emt 0:00:30] fxg6 would now be deadly.} gxf5 {[%emt 0:00:30] Weighted Error Value: White=0.23 (precise) /Black=0.18 (very precise) .  Mistake:       	White=4     	Black=4      Inaccurate:     	White=1     	---        OK:         	White=3     	Black=14     Best:        	White=1     	---} 1/2-1/2

[Event "1000 GM Labor Day Super Swiss 2024"]
[Site "San Jose"]
[Date "2024.08.31"]
[Round "2.22"]
[White "Zuluaga Mancilla, Cesar"]
[Black "Widjaja, Luke"]
[Result "0-1"]
[Annotator "TA"]
[ECO "D30"]
[WhiteElo "2166"]
[BlackElo "2056"]
[PlyCount "52"]
[EventDate "2024.08.30"]
[EventCountry "USA"]
[SourceTitle "playchess.com"]
[Source "ChessBase"]
[SourceQuality "1"]
[TimeControl "5400+30"]

{[%evp 9,52,0,0,0,-7,0,12,0,0,0,0,0,0,-54,-45,-88,-49,-71,-37,-46,-67,-63,-66,-84,-77,-85,-75,-285,-302,-272,-261,-346,-377,-455,-383,-682,-675,-642,-691,-1352,-1314,-29997,-29998,-29998,-29999]} 1. d4 {[%emt 0:06:14]} d5 {[%emt 0:00:04]} 2. Nf3 {[%emt 0:00:05]} Nf6 {[%emt 0:00:03]} 3. c4 {[%emt 0:01:25]} e6 {[%emt 0:00:04]} 4. Nbd2 {[%emt 0:00:30]} c5 {[%emt 0:07:44]} 5. e3 {[%emt 0:01:52]} cxd4 {[%emt 0:04:27]} 6. Nxd4 {[%emt 0:00:14]} Nc6 {[%emt 0:10:13]} 7. N4f3 {[%emt 0:00:19]} Bd6 {[%emt 0:02:25]} 8. Be2 {[%emt 0:03:43] The position is equal.} O-O {[%emt 0:01:40]} 9. O-O {[%emt 0:00:54]} Bc7 {[%emt 0:08:00]} 10. cxd5 {[%emt 0:03:22]} exd5 {[%emt 0:01:59]} 11. Nb3 {[%emt 0:02:53]} (11. b3 $11) 11... Qd6 {[%emt 0:03:06]} 12. g3 {[%emt 0:04:22]} Ne4 {[%emt 0:08:58]} 13. Nbd4 {[%emt 0:05:39]} a6 {[%emt 0:03:59] Repels Nb5} 14. Bd2 {[%emt 0:06:18]} Bh3 {[%emt 0:02:12]} 15. Re1 {[%emt 0:00:10]} Qf6 {[%emt 0:10:42]} 16. Nxc6 {[%emt 0:12:51]} bxc6 {[%emt 0:00:33]} ({Much worse is} 16... Qxc6 $6 17. Rc1 Qd7 18. Bb4 $11) 17. Rc1 {[%emt 0:09:53]} Be5 {[%emt 0:10:50] Black is much more active.} ({Much weaker is} 17... Qxb2 18. Rxc6 Bd6 19. Qa1 Qxa1 20. Rxa1 $11) 18. Qa4 $2 {[%emt 0:04:46] Loses the game.} (18. Rxc6 $17 {might work better.} Qxc6 19. Nxe5) 18... c5 $19 {[%emt 0:05:47]} ({Less strong is} 18... Bxb2 19. Rxc6 Qf5 20. Rd1 $17) 19. Red1 {[%emt 0:04:47]} Bxb2 {[%emt 0:03:28]} 20. Rb1 {[%emt 0:00:11]} Bc3 {[%emt 0:02:07] [#] aiming for ...Bxd2.} 21. Bc1 {[%emt 0:01:15]} d4 {[%emt 0:03:59]} 22. Rb3 $2 {[%emt 0:07:30]} (22. exd4 Bxd4 23. Qc4) 22... Bg4 {[%emt 0:02:49]} 23. Kg2 {[%emt 0:00:29]} Ng5 {[%emt 0:01:23]} 24. Ng1 {[%emt 0:14:34]} Bxe2 {[%emt 0:00:15]} 25. Nxe2 {[%emt 0:00:05]} Qf3+ {[%emt 0:00:09]} 26. Kf1 {[%emt 0:00:04]} Nh3 {[%emt 0:00:21] Weighted Error Value: White=1.04/Black=0.11 (very precise) .  Loses game:     	White=1     	---        Mistake:       	White=2     	---        Inaccurate:     	White=2     	Black=2      OK:         	White=3     	Black=8      Best:        	White=2     	---} 0-1